[Event "Bergen Grand Prix 2019"]
[Site "Bergen"]
[Date "2019.11.17"]
[Round "5.10"]
[White "Dale, Svein"]
[Black "Sorhus, Jostein"]
[Result "0-1"]
[ECO "B21"]
[WhiteElo "1787"]
[BlackElo "1630"]
[Annotator "NA RC"]
[PlyCount "96"]
[EventDate "2019.11.15"]
[EventType "swiss"]
[EventCountry "NOR"]
[SourceTitle "playchess.com"]
[Source "ChessBase"]
[SourceQuality "1"]
[TimeControl "40/5400:1800"]

1. e4 {[%emt 0:00:03]} c5 {[%emt 0:00:26]} 2. d4 {[%emt 0:00:04]} cxd4 {[%emt 0:00:12]} 3. c3 {[%emt 0:00:06]} d3 {[%emt 0:00:10]} 4. Nf3 {[%emt 0:00:51]} g6 {[%emt 0:00:17]} 5. Bxd3 {[%emt 0:00:38]} Bg7 {[%emt 0:00:43]} 6. O-O {[%emt 0:00:51]} Nc6 {[%emt 0:00:49]} 7. Re1 {[%emt 0:01:45]} d6 {[%emt 0:00:42]} 8. Na3 {[%emt 0:01:38]} Nf6 {[%emt 0:01:36]} 9. Nc4 {[%emt 0:03:45]} O-O {[%emt 0:07:36]} 10. Bg5 {[%emt 0:01:33]} Bg4 {[%emt 0:02:56]} 11. h3 {[%emt 0:02:55]} Bxf3 {[%emt 0:04:23]} 12. Qxf3 {[%emt 0:00:33]} b5 {[%emt 0:00:45]} 13. Ne3 {[%emt 0:02:28]} Ne5 {[%emt 0:01:53]} 14. Qe2 {[%emt 0:00:41]} Nxd3 {[%emt 0:01:02]} 15. Qxd3 {[%emt 0:00:03]} h6 {[%emt 0:02:55]} 16. Bh4 {[%emt 0:01:15]} Nh5 {[%emt 0:01:42]} 17. Nd5 {[%emt 0:06:33]} g5 {[%emt 0:01:57]} 18. Qf3 {[%emt 0:03:27]} Nf6 {[%emt 0:02:16]} 19. Bg3 {[%emt 0:03:03]} Nd7 {[%emt 0:02:06]} 20. Qh5 {[%emt 0:04:40]} e5 {[%emt 0:04:00]} 21. Ne3 {[%emt 0:03:15]} Nf6 {[%emt 0:04:16]} 22. Qf3 {[%emt 0:00:26]} Kh8 {[%emt 0:05:35]} 23. Rad1 {[%emt 0:00:36]} Qc7 {[%emt 0:04:12]} 24. Nf5 {[%emt 0:00:46]} Rad8 {[%emt 0:01:10]} 25. Nxh6 {[%emt 0:02:03]} Nxe4 {[%emt 0:07:54]} 26. Rxe4 {[%emt 0:05:00]} Bxh6 {[%emt 0:02:03]} 27. Qf6+ {[%emt 0:03:36]} Kh7 {[%emt 0:02:28]} 28. h4 {[%emt 0:00:48]} g4 {[%emt 0:03:51]} 29. Rxg4 {[%emt 0:01:29]} Qd7 {[%emt 0:00:41]} 30. Qf3 {[%emt 0:04:11]} f5 {[%emt 0:03:41]} 31. Rb4 {[%emt 0:00:50]} e4 {[%emt 0:04:42]} 32. Qe2 {[%emt 0:01:03]} a6 {[%emt 0:02:11]} 33. Rxd6 {[%emt 0:02:34]} Qe7 {[%emt 0:01:14]} 34. Rxa6 {[%emt 0:03:17]} e3 {[%emt 0:01:52]} 35. Rd4 {[%emt 0:02:39]} Rxd4 {[%emt 0:01:48]} 36. cxd4 {[%emt 0:00:02]} Qe4 {[%emt 0:00:24]} 37. Ra7+ {[%emt 0:03:20]} Kg8 {[%emt 0:00:54]} 38. fxe3 {[%emt 0:10:13]} Bxe3+ {[%emt 0:00:38]} 39. Kh1 {[%emt 0:00:41]} Rc8 {[%emt 0:00:26]} 40. Rc7 {[%emt 0:05:48]} Qb1+ {[%emt 0:00:27]} 41. Kh2 {[%emt 0:00:50]} Qg1+ {[%emt 0:00:57]} 42. Kh3 {[%emt 0:00:08]} Qh1+ {[%emt 0:00:13]} 43. Bh2 {[%emt 0:00:36]} Rxc7 {[%emt 0:04:03]} 44. Qxe3 {[%emt 0:00:03]} Rg7 {[%emt 0:02:46]} 45. Qf3 {[%emt 0:01:11]} f4 {[%emt 0:00:17]} 46. d5 {[%emt 0:00:37]} Rg3+ {[%emt 0:00:11]} 47. Qxg3+ {[%emt 0:00:08]} fxg3 {[%emt 0:00:11]} 48. Kxg3 {[%emt 0:00:29]} Qd1 {[%emt 0:00:00]} 0-1

[Event "Bergen Grand Prix 2019"]
[Site "Bergen"]
[Date "2019.11.17"]
[Round "5.11"]
[White "Tenfjord Engelsen, Teodor"]
[Black "Wallevik, Karl"]
[Result "0-1"]
[ECO "D00"]
[WhiteElo "1349"]
[BlackElo "1186"]
[Annotator "NA RC"]
[PlyCount "40"]
[EventDate "2019.11.15"]
[EventType "swiss"]
[EventCountry "NOR"]
[SourceTitle "playchess.com"]
[Source "ChessBase"]
[SourceQuality "1"]
[TimeControl "40/5400:1800"]

1. d4 {[%emt 0:00:07]} d5 {[%emt 0:00:03]} 2. Nc3 {[%emt 0:00:04]} Nf6 {[%emt 0:00:36]} 3. Bf4 {[%emt 0:00:04]} a6 {[%emt 0:01:50]} 4. e3 {[%emt 0:00:04]} e6 {[%emt 0:03:25]} 5. Bd3 {[%emt 0:00:14]} Bb4 {[%emt 0:00:44]} 6. Nge2 {[%emt 0:00:05]} Bd7 {[%emt 0:01:36]} 7. O-O {[%emt 0:00:43]} Nc6 {[%emt 0:01:00]} 8. a3 {[%emt 0:00:30]} Ba5 {[%emt 0:00:49]} 9. f3 {[%emt 0:03:01]} Qe7 {[%emt 0:01:38]} 10. Re1 {[%emt 0:07:12]} O-O-O {[%emt 0:00:20]} 11. b4 {[%emt 0:00:20]} Bb6 {[%emt 0:01:13]} 12. Ng3 {[%emt 0:02:10]} e5 {[%emt 0:01:12]} 13. Nf5 {[%emt 0:04:14]} Bxf5 {[%emt 0:01:14]} 14. Bxf5+ {[%emt 0:00:08]} Kb8 {[%emt 0:00:45]} 15. dxe5 {[%emt 0:02:12]} Nxe5 {[%emt 0:00:30]} 16. Ne2 {[%emt 0:08:59]} Rhe8 {[%emt 0:03:22]} 17. Nd4 {[%emt 0:01:32]} Nc4 {[%emt 0:02:07]} 18. Qd3 {[%emt 0:05:39]} Nh5 {[%emt 0:04:24]} 19. Kh1 {[%emt 0:07:42]} Nxf4 {[%emt 0:01:03]} 20. exf4 {[%emt 0:00:38]} Qxe1+ {[%emt 0:00:20]} 0-1

[Event "Bergen Grand Prix 2019"]
[Site "Bergen"]
[Date "2019.11.17"]
[Round "5.12"]
[White "Hansen, Arve Nils"]
[Black "Fiskaaen, Martin Holten"]
[Result "1/2-1/2"]
[ECO "B53"]
[WhiteElo "1297"]
[BlackElo "1190"]
[Annotator "NA RC"]
[PlyCount "166"]
[EventDate "2019.11.15"]
[EventType "swiss"]
[EventCountry "NOR"]
[SourceTitle "playchess.com"]
[Source "ChessBase"]
[SourceQuality "1"]
[TimeControl "40/5400:1800"]

1. e4 {[%emt 0:01:53]} c5 {[%emt 0:00:11]} 2. Nf3 {[%emt 0:00:13]} d6 {[%emt 0:00:07]} 3. d4 {[%emt 0:01:33]} cxd4 {[%emt 0:00:09]} 4. Qxd4 {[%emt 0:01:30]} Nc6 {[%emt 0:00:17]} 5. Qd1 {[%emt 0:02:46]} Nf6 {[%emt 0:02:22]} 6. Bd3 {[%emt 0:00:49]} g6 {[%emt 0:02:31]} 7. Bd2 {[%emt 0:00:52]} Bg7 {[%emt 0:01:31]} 8. Bc3 {[%emt 0:00:05]} O-O {[%emt 0:01:13]} 9. Nbd2 {[%emt 0:03:46]} a6 {[%emt 0:02:15]} 10. Nb3 {[%emt 0:00:48]} b5 {[%emt 0:01:55]} 11. a3 {[%emt 0:03:46]} Bb7 {[%emt 0:04:50]} 12. Qe2 {[%emt 0:05:51]} Rc8 {[%emt 0:02:53]} 13. h3 {[%emt 0:04:36]} Nd7 {[%emt 0:03:46]} 14. Bxg7 {[%emt 0:01:46]} Kxg7 {[%emt 0:00:22]} 15. h4 {[%emt 0:04:19]} Nde5 {[%emt 0:01:29]} 16. h5 {[%emt 0:02:02]} Nxf3+ {[%emt 0:01:15]} 17. gxf3 {[%emt 0:00:24]} Ne5 {[%emt 0:01:30]} 18. hxg6 {[%emt 0:03:26]} Nxd3+ {[%emt 0:02:13]} 19. Qxd3 {[%emt 0:00:16]} hxg6 {[%emt 0:00:24]} 20. Qd4+ {[%emt 0:07:07]} e5 {[%emt 0:00:19]} 21. Qd2 {[%emt 0:00:47]} Rh8 {[%emt 0:11:54]} 22. O-O-O {[%emt 0:00:42]} Rxh1 {[%emt 0:07:48]} 23. Rxh1 {[%emt 0:00:08]} Qf6 {[%emt 0:00:25]} 24. Qh6+ {[%emt 0:00:20]} Kg8 {[%emt 0:00:21]} 25. Qh3 {[%emt 0:01:01]} Kf8 {[%emt 0:05:33]} 26. Rd1 {[%emt 0:04:21]} Rd8 {[%emt 0:06:34]} 27. Qh6+ {[%emt 0:02:10]} Ke7 {[%emt 0:01:31]} 28. Qe3 {[%emt 0:00:13]} Qf4 {[%emt 0:00:48]} 29. Rd3 {[%emt 0:04:02]} Qxe3+ {[%emt 0:00:44]} 30. fxe3 {[%emt 0:00:21]} Rh8 {[%emt 0:01:45]} 31. Rc3 {[%emt 0:02:01]} Kd7 {[%emt 0:01:22]} 32. Rd3 {[%emt 0:00:40]} Ke6 {[%emt 0:00:11]} 33. Rc3 {[%emt 0:01:26]} Rc8 {[%emt 0:00:18]} 34. Kd2 {[%emt 0:01:01]} Rxc3 {[%emt 0:02:09]} 35. Kxc3 {[%emt 0:00:06]} f5 {[%emt 0:00:32]} 36. Nd2 {[%emt 0:00:37]} d5 {[%emt 0:02:41]} 37. Kd3 {[%emt 0:02:29]} g5 {[%emt 0:03:57]} 38. exf5+ {[%emt 0:03:27]} Kxf5 {[%emt 0:00:27]} 39. b3 {[%emt 0:00:17]} d4 {[%emt 0:05:11]} 40. a4 {[%emt 0:01:47]} dxe3 {[%emt 0:03:01]} 41. Kxe3 {[%emt 0:30:23]} b4 {[%emt 0:30:22]} 42. Nc4 {[%emt 0:00:24]} Bd5 {[%emt 0:00:00]} 43. a5 {[%emt 0:00:00]} Bc6 {[%emt 0:00:00]} 44. Nd2 {[%emt 0:00:00]} g4 {[%emt 0:00:00]} 45. fxg4+ {[%emt 0:00:00]} Kxg4 {[%emt 0:00:00]} 46. Nb1 {[%emt 0:00:00]} Kf5 {[%emt 0:00:00]} 47. Nd2 {[%emt 0:00:00]} Ke6 {[%emt 0:00:00]} 48. Nc4 {[%emt 0:00:00]} Bb7 {[%emt 0:00:00]} 49. Kd2 {[%emt 0:00:00]} e4 {[%emt 0:00:00]} 50. c3 {[%emt 0:00:00]} bxc3+ {[%emt 0:00:00]} 51. Kxc3 {[%emt 0:00:00]} Kd5 {[%emt 0:00:00]} 52. b4 {[%emt 0:00:00]} Bc6 {[%emt 0:00:00]} 53. Ne3+ {[%emt 0:00:00]} Kd6 {[%emt 0:00:00]} 54. Kd4 {[%emt 0:00:00]} Bb7 {[%emt 0:00:00]} 55. Nf5+ {[%emt 0:00:00]} Ke6 {[%emt 0:00:00]} 56. Ne3 {[%emt 0:00:00]} Kd6 {[%emt 0:00:00]} 57. Nd1 {[%emt 0:00:00]} Kc6 {[%emt 0:00:00]} 58. Nc3 {[%emt 0:00:00]} e3 {[%emt 0:00:00]} 59. Kxe3 {[%emt 0:00:00]} Bc8 {[%emt 0:00:00]} 60. Kd4 {[%emt 0:00:00]} Bh3 {[%emt 0:00:00]} 61. Ke5 {[%emt 0:00:00]} Bg2 {[%emt 0:00:00]} 62. Ke6 {[%emt 0:00:00]} Bh3+ {[%emt 0:00:00]} 63. Ke7 {[%emt 0:00:00]} Bg4 {[%emt 0:00:00]} 64. Kd8 {[%emt 0:00:00]} Bh3 {[%emt 0:00:00]} 65. Ke7 {[%emt 0:00:00]} Bg2 {[%emt 0:00:00]} 66. Ke6 {[%emt 0:00:00]} Bh3+ {[%emt 0:00:00]} 67. Ke5 {[%emt 0:00:00]} Bg2 {[%emt 0:00:00]} 68. Kd4 {[%emt 0:00:00]} Bh3 {[%emt 0:00:00]} 69. Na2 {[%emt 0:00:00]} Kb5 {[%emt 0:00:00]} 70. Kd5 {[%emt 0:00:00]} Bg2+ {[%emt 0:00:00]} 71. Kd6 {[%emt 0:00:00]} Bf3 {[%emt 0:00:00]} 72. Kc7 {[%emt 0:00:00]} Bg2 {[%emt 0:00:00]} 73. Kb8 {[%emt 0:00:00]} Bh3 {[%emt 0:00:00]} 74. Kb7 {[%emt 0:01:02]} Bg2+ {[%emt 0:00:00]} 75. Ka7 {[%emt 0:00:46]} Bh3 {[%emt 0:00:00]} 76. Nc1 {[%emt 0:02:15]} Bf1 {[%emt 0:00:00]} 77. Na2 {[%emt 0:01:41]} Bc4 {[%emt 0:00:00]} 78. Nc3+ {[%emt 0:00:39]} Kxb4 {[%emt 0:00:00]} 79. Nd5+ {[%emt 0:00:27]} Bxd5 {[%emt 0:00:00]} 80. Kxa6 {[%emt 0:00:06]} Kc5 {[%emt 0:00:00]} 81. Ka7 {[%emt 0:00:15]} Kb5 {[%emt 0:00:00]} 82. a6 {[%emt 0:00:05]} Ka5 {[%emt 0:00:00]} 83. Kb8 {[%emt 0:00:11]} Kxa6 {[%emt 0:00:00]} 1/2-1/2